bitfinex-derivatives/quotes_ETHF0:USTF0_20210705
["timestamp","ask_amount","ask_price","bid_price","bid_amount"]
[1625469635840,6.67594,2269.7,2269.6,2.20527]
[1625469637043,6.67594,2269.7,2269.4,2.20527]
[1625469637044,6.67594,2269.7,2268.5,1.0]
[1625469637144,6.67594,2269.7,2268.1,3.59469984]
[1625469637242,6.67594,2269.7,2268.1,2.59469984]
[1625469637645,6.67594,2269.7,2267.3,3.37422071]
[1625469637646,40.7095,2268.9,2267.5,2.59555439]
[1625469637745,43.2712,2268.9,2268.2,16.111517]
[1625469637844,2.20527,2268.4,2268.3,2.20527]
[1625469637945,4.60667,2268.4,2268.3,2.20527]
[1625469638144,4.60667,2268.4,2268.3,2.622912]
[1625469639852,6.81194,2268.4,2268.3,2.622912]
[1625469640548,6.81194,2268.4,2268.3,0.417642]
[1625469640649,6.81194,2268.4,2268.0,2.20527]
[1625469641800,2.20527,2268.1,2268.0,2.20527]
[1625469643505,2.20527,2268.1,2267.2,63.7296]
[1625469643605,2.20527,2268.1,2267.2,50.0237]
[1625469643806,2.20527,2268.1,2267.5,2.20527]
[1625469644206,2.20527,2268.1,2267.6,15.935978]
[1625469645813,2.20527,2267.7,2267.6,15.935978]
[1625469646781,1.0,2268.8,2267.6,15.935978]
[1625469646880,1.0,2269.5,2267.6,15.935978]
[1625469646980,14.7616,2269.6,2267.6,16.935978]
[1625469647733,19.7616,2269.6,2267.6,16.935978]
[1625469647833,2.20527,2268.3,2268.2,2.20527]
[1625469648233,2.20527,2268.3,2268.2,18.278697]
[1625469651215,1.0,2269.5,2268.2,18.278697]
[1625469651318,14.7616,2269.6,2268.2,18.278697]
[1625469651399,14.7616,2269.6,2268.2,21.157797]
[1625469651822,14.7616,2269.6,2268.2,2.8791]
[1625469651958,4.41054,2268.3,2267.6,2.20527]
[1625469652047,7.05314,2268.3,2267.6,2.20527]
[1625469653804,7.05314,2268.3,2267.4,2.20527]
[1625469653907,6.68574,2267.5,2267.4,2.20527]
[1625469656908,45.03824,2267.5,2267.4,2.20527]
[1625469657158,45.03824,2267.5,2267.1,2.20527]
[1625469657907,2.20527,2267.2,2267.1,2.20527]
[1625469659210,4.61677,2267.2,2267.1,2.20527]
[1625469660829,4.61677,2267.2,2265.9,1.0]
[1625469660936,4.61677,2267.2,2265.6,28.7152]
[1625469661414,40.5122,2266.1,2265.6,28.7152]
[1625469661512,42.8418,2266.1,2265.6,14.2345]
[1625469661964,42.8418,2266.1,2266.0,2.20527]
[1625469662064,2.3296,2266.1,2266.0,2.20527]
[1625469663928,2.3296,2266.1,2266.0,18.254245]
[1625469664981,2.3296,2266.1,2266.0,2.20527]
[1625469666635,4.41054,2266.3,2266.0,2.20527]
[1625469667036,4.41054,2266.3,2266.1,16.011839]
[1625469670547,3.4115,2267.2,2266.1,16.011839]
[1625469670646,2.4115,2267.2,2266.1,16.011839]
[1625469670747,1.0,2268.0,2266.1,16.011839]
[1625469670856,1.0,2268.0,2266.1,17.011839]
[1625469671357,2.6426,2268.3,2266.1,16.011839]
[1625469671456,5.0,2268.9,2266.1,16.011839]
[1625469671557,16.9396,2269.6,2266.1,16.011839]
[1625469671656,1.1,2269.1,2266.1,16.011839]
[1625469671757,1.0,2269.0,2266.1,16.011839]
[1625469671905,1.0,2269.0,2267.1,51.402]
[1625469672007,1.1,2269.1,2267.1,51.402]
[1625469672109,2.20527,2268.0,2267.9,2.20527]
[1625469673214,2.20527,2268.0,2267.6,2.20527]
[1625469673311,2.20527,2268.0,2266.4,1.0]
[1625469673416,2.20527,2268.0,2265.7,17.8606]
[1625469673515,3.20527,2268.0,2265.7,14.3821]
[1625469673614,5.0,2267.9,2265.7,14.3821]
[1625469674016,2.20527,2266.5,2266.4,2.20527]
[1625469674115,5.11997,2266.5,2266.4,2.20527]
[1625469676020,7.32524,2266.5,2266.4,2.20527]
[1625469676523,2.9147,2266.5,2266.4,18.309448]
[1625469676621,40.085,2267.5,2266.4,18.309448]
[1625469678033,2.20527,2266.8,2266.7,2.20527]
[1625469678786,5.08787,2266.8,2266.7,2.20527]
[1625469682997,2.8826,2266.8,2266.7,2.20527]
[1625469683098,1.0,2267.9,2266.7,2.20527]
[1625469683200,6.1,2268.7,2266.7,2.20527]
[1625469683297,6.1,2268.7,2266.7,18.097145]
[1625469684097,2.20527,2267.4,2267.3,2.20527]
[1625469685804,2.20527,2267.4,2267.3,18.343854]
[1625469686102,4.41054,2267.4,2267.3,18.343854]
[1625469687355,2.20527,2267.4,2267.3,18.343854]
[1625469688106,2.20527,2267.7,2267.3,20.549124]
[1625469689167,2.20527,2267.7,2267.3,4.41054]
[1625469690120,2.20527,2267.4,2267.3,4.41054]
[1625469692528,2.20527,2267.7,2267.3,4.41054]
[1625469694136,2.20527,2267.4,2267.3,4.41054]
[1625469695896,2.20527,2267.4,2267.3,2.20527]
[1625469697100,2.20527,2267.4,2266.8,2.20527]
[1625469698155,2.20527,2266.9,2266.8,2.20527]
[1625469706520,2.20527,2266.9,2266.8,18.165197]
[1625469712788,2.20527,2267.4,2266.8,18.165197]
[1625469714242,2.20527,2267.4,2267.3,2.20527]
[1625469714342,2.20527,2267.4,2267.3,4.53257]
[1625469714854,2.20527,2267.4,2267.3,2.3273]
[1625469715200,2.20527,2267.4,2266.8,2.20527]
[1625469715300,5.62587,2267.4,2266.8,2.20527]
[1625469716302,2.20527,2266.9,2266.8,2.20527]
[1625469716400,5.76117,2266.9,2266.8,2.20527]
[1625469717958,3.5559,2266.9,2266.8,2.20527]
[1625469718057,2.20527,2267.4,2266.8,2.20527]
[1625469718258,2.20527,2267.4,2267.2,2.20527]
[1625469719864,2.20527,2267.4,2265.9,1.0]
[1625469719965,2.20527,2267.4,2264.7,6.56814353]
[1625469719966,4.96367,2267.4,2265.5,1.0]
[1625469720061,9.96367,2267.4,2264.7,6.56814353]
[1625469720161,1.0,2267.3,2264.7,6.56814353]
[1625469720262,2.20527,2266.0,2265.9,2.20527]
[1625469720463,4.81067,2266.0,2265.9,2.20527]
[1625469722273,7.01594,2266.0,2265.9,2.20527]
[1625469723877,2.20527,2266.0,2265.9,2.20527]
[1625469724073,1.0,2267.3,2265.9,2.20527]
[1625469724156,1.74565689,2267.6,2265.9,4.93077]
[1625469724253,2.20527,2266.6,2266.5,2.20527]
[1625469724453,2.20527,2266.6,2266.5,4.75657]
[1625469724552,2.20527,2266.6,2266.5,56.42597]
[1625469725101,1.74813041,2267.7,2266.5,56.42597]
[1625469725403,1.7484052,2267.8,2266.5,56.42597]
[1625469725804,1.7484052,2267.8,2266.6,16.145862]
[1625469726005,1.74907768,2268.0,2266.6,16.145862]
[1625469726355,2.20527,2267.2,2267.1,5.51127]
[1625469726557,2.20527,2267.2,2267.1,3.306]
[1625469728261,4.41054,2267.2,2267.1,3.306]
[1625469731669,4.41054,2267.2,2266.5,6.96184]
[1625469732320,2.20527,2266.6,2266.5,6.96184]
[1625469732621,2.20527,2266.6,2266.5,22.962744]
[1625469733172,7e-05,2266.6,2266.5,22.962744]
[1625469733274,7e-05,2266.6,2266.5,69.412844]
[1625469739711,2.20527,2267.2,2266.5,69.412844]
[1625469740113,1.25450576,2267.6,2266.5,69.412844]
[1625469740413,2.20527,2267.3,2267.2,2.20527]
[1625469742065,3.96266207,2267.3,2267.2,2.20527]
[1625469742365,6.16793207,2267.3,2267.2,2.20527]
[1625469743074,5.66617307,2267.3,2267.2,2.20527]
[1625469743324,1.25563307,2267.3,2267.2,2.20527]
[1625469743480,2.51126614,2267.5,2267.2,39.28827]
[1625469743481,1.25626907,2267.5,2267.2,39.28827]
[1625469743677,1.25626907,2267.5,2267.2,41.79797]
[1625469743775,1.25626907,2267.5,2267.2,57.944381]
[1625469744378,1.25626907,2267.5,2267.4,2.20527]
[1625469745079,1.25700291,2267.6,2267.4,2.20527]
[1625469749713,3.46247051,2267.7,2267.4,2.20527]
[1625469750115,3.46247051,2267.7,2267.5,15.926253]
[1625469750416,3.46247051,2267.7,2267.6,2.20527]
[1625469750918,2.20527,2267.7,2267.6,2.20527]
[1625469751668,2.20527,2267.7,2267.6,18.310499]
[1625469752121,7e-05,2267.7,2267.6,18.310499]
[1625469755730,2.88457,2267.7,2267.6,18.310499]
[1625469755831,2.88457,2267.7,2267.6,2.20527]
[1625469756480,4.13886295,2267.7,2267.6,2.20527]
[1625469757580,2.88457,2267.7,2267.6,2.20527]
[1625469757882,2.88457,2267.7,2267.6,58.387793]
[1625469759484,2.88457,2267.7,2267.6,18.105293]
[1625469763694,2.88457,2267.7,2267.6,58.633993]
[1625469764452,2.88457,2267.7,2267.6,18.105293]
[1625469765661,2.88457,2267.7,2267.6,2.20527]
[1625469766312,2.88457,2267.7,2266.8,43.4731]
[1625469766416,2.88457,2267.7,2266.5,15.51390085]
[1625469766517,2.20527,2267.1,2267.0,2.20527]
[1625469766717,4.38137,2267.1,2267.0,2.20527]
[1625469767269,4.38137,2267.1,2266.8,2.20527]
[1625469767372,4.38137,2267.1,2266.2,1.30217661]
[1625469767820,49.83877,2267.1,2266.2,1.30217661]
[1625469767922,49.83877,2267.1,2265.6,1.0]
[1625469767923,52.34149593,2267.1,2265.7,1.30248172]
[1625469768119,6.88409593,2267.1,2265.7,1.30248172]
[1625469768522,2.20527,2266.3,2266.2,2.20527]
[1625469768621,4.72827,2266.3,2266.2,2.20527]
[1625469770128,2.523,2266.3,2266.2,2.20527]
[1625469770229,1.25097264,2266.9,2266.2,2.20527]
[1625469770328,1.25097264,2266.9,2266.2,4.45627]
[1625469770527,3.45624264,2266.9,2266.8,2.20527]
[1625469770629,2.20527,2266.9,2266.8,2.20527]
[1625469770728,2.20527,2266.9,2266.8,41.47797]
[1625469771479,2.20527,2266.9,2266.8,2.20527]
[1625469772534,4.41054,2266.9,2266.8,2.20527]
[1625469773132,1.25068855,2267.2,2266.8,2.20527]
[1625469773581,1.25088766,2267.4,2266.8,2.20527]
[1625469774535,2.20527,2266.9,2266.8,4.41054]
[1625469774634,2.20527,2266.9,2266.8,6.88224]
[1625469775742,2.20527,2266.9,2266.8,53.32894]
[1625469775940,2.20527,2266.9,2266.8,69.214838]
[1625469776242,2.20527,2266.9,2266.8,22.768138]
[1625469776943,2.20527,2266.9,2266.8,4.41054]
[1625469779233,3.9541585,2266.9,2266.8,4.41054]
[1625469779718,3.45481333,2266.9,2266.8,4.41054]
[1625469781076,3.95443245,2266.9,2266.8,4.41054]
[1625469781525,3.45476239,2266.9,2266.8,4.41054]
[1625469782026,2.20527,2266.9,2266.8,4.41054]
[1625469782328,3.45479449,2266.9,2266.8,4.41054]
[1625469783981,2.20527,2266.9,2266.8,4.41054]
[1625469784733,3.45492813,2266.9,2266.8,4.41054]
[1625469784984,2.20527,2266.9,2266.8,4.41054]
[1625469785685,3.45473359,2266.9,2266.8,4.41054]
[1625469788292,3.45473359,2266.9,2266.8,2.20527]
[1625469790849,1.24946359,2266.9,2266.8,5.56807]
[1625469791353,2.20527,2267.1,2266.8,5.56807]
[1625469791558,2.20527,2267.1,2266.8,21.505811]
[1625469792667,2.20527,2267.1,2267.0,2.20527]
[1625469794725,2.20527,2267.1,2267.0,42.05497]
[1625469795277,2.20527,2267.1,2267.0,2.20527]
[1625469798989,2.20527,2267.1,2267.0,18.280469]
[1625469799939,2.20527,2267.1,2267.0,70.763069]
[1625469805601,1.25511365,2267.6,2267.0,70.763069]
[1625469805801,1.25607737,2267.9,2267.0,70.763069]
[1625469806506,1.75850831,2268.0,2267.0,70.763069]
[1625469806507,1.25628799,2268.0,2267.0,70.763069]
[1625469806706,1.25628799,2268.0,2267.9,4.41054]
[1625469806806,1.25628799,2268.0,2267.9,7.48634]
[1625469806907,1.25619173,2268.1,2267.9,7.48634]
[1625469807006,1.25619173,2268.1,2267.9,23.569388]
[1625469807306,1.25619173,2268.1,2268.0,49.8571]
[1625469808866,3.96410165,2268.2,2268.0,49.8571]
[1625469808867,3.4614587,2268.2,2268.0,49.8571]
[1625469809722,1.2560006,2268.1,2268.0,49.8571]
[1625469810071,3.46131517,2268.2,2268.0,49.8571]
[1625469810725,3.46131517,2268.2,2267.9,7.48634]
[1625469811435,3.46131517,2268.2,2268.0,15.943227]
[1625469811628,2.20527,2268.2,2268.0,15.943227]
[1625469812387,3.46128004,2268.2,2268.0,15.943227]
[1625469812789,2.20527,2268.2,2268.0,15.943227]
[1625469813844,3.46154004,2268.2,2268.0,15.943227]
[1625469814338,3.46154004,2268.2,2268.0,58.947727]
[1625469814654,2.20527,2268.2,2268.0,58.947727]
[1625469815493,3.46146372,2268.2,2268.0,58.947727]
[1625469816044,2.20527,2268.2,2268.0,58.947727]
[1625469817247,1.25621082,2268.3,2268.0,15.943227]
[1625469818495,3.46155949,2268.4,2268.0,15.943227]
[1625469818797,3.46155949,2268.4,2268.3,2.20527]
[1625469821253,2.20527,2268.4,2268.3,2.20527]
[1625469821602,3.46145668,2268.4,2268.3,2.20527]
[1625469825220,55.00025668,2268.4,2267.9,2.20527]
[1625469825323,56.38877,2268.4,2267.9,2.20527]
[1625469825424,58.8979433,2268.4,2267.9,2.20527]
[1625469825874,1.25418681,2268.1,2267.9,2.20527]
[1625469826279,1.25421919,2268.0,2267.9,2.20527]
[1625469826878,3.45948919,2268.0,2267.9,2.20527]
[1625469827388,2.20527,2268.0,2267.9,2.20527]
[1625469827988,3.4594542,2268.0,2267.9,2.20527]
[1625469829699,3.4594542,2268.0,2267.7,2.20527]
[1625469829700,3.4594542,2268.0,2267.0,1.0]
[1625469829798,3.4594542,2268.0,2266.7,13.9993]
[1625469829900,2.20527,2268.0,2266.7,13.9993]
[1625469830303,1.25360191,2267.9,2266.7,13.9993]
[1625469830401,4.61700191,2267.9,2266.8,16.098362]
[1625469830600,1.25359677,2267.8,2266.8,16.098362]
[1625469830801,1.25359677,2267.8,2267.3,2.20527]
[1625469830902,2.20527,2267.4,2267.3,2.20527]
[1625469832858,4.41054,2267.4,2267.3,2.20527]
[1625469834494,6.95054,2267.4,2267.3,2.20527]
[1625469836888,8.20183809,2267.4,2267.3,2.20527]
[1625469837241,6.95054,2267.4,2267.3,2.20527]
[1625469837638,8.201854,2267.4,2267.3,2.20527]
[1625469842864,8.70096608,2267.4,2267.3,2.20527]
[1625469844064,6.95054,2267.4,2267.3,2.20527]
[1625469845068,8.70018928,2267.4,2267.3,2.20527]
[1625469845569,9.44956269,2267.4,2267.3,2.20527]
[1625469846822,9.44956269,2267.4,2266.3,1.0]
[1625469846927,9.44956269,2267.4,2265.9,13.6615]
[1625469847028,4.55957,2266.7,2266.6,2.20527]
[1625469847737,4.55957,2266.7,2266.3,2.20527]
[1625469847935,52.66487,2266.7,2266.3,7e-05]
[1625469848035,5.0,2266.6,2265.3,1.0]
[1625469848136,5.0,2266.6,2265.1,1.81986874]
[1625469848238,6.3072626,2266.6,2265.1,1.81986874]
[1625469848357,6.3072626,2266.6,2265.1,1.29994961]
[1625469848438,6.3072626,2266.6,2265.1,0.87394961]
[1625469848641,6.53771238,2266.5,2265.0,1.81992945]
[1625469848738,41.944,2265.1,2265.0,0.59382945]
[1625469848837,44.8547,2265.1,2265.0,0.59382945]
[1625469848949,49.26524,2265.1,2264.9,2.59989922]
[1625469849042,49.26524,2265.1,2264.9,1.58869922]
[1625469849141,54.26524,2265.1,2264.4,4.15983875]
[1625469849241,54.26524,2265.1,2262.7,14.6875]
[1625469849341,54.26524,2265.1,2263.9,5.00574805]
[1625469849643,54.26524,2265.1,2263.4,2.60132047]
[1625469849743,51.4949,2264.2,2263.4,2.60132047]
[1625469849842,54.9723,2264.2,2263.4,2.60132047]
[1625469850043,3.4774,2264.2,2263.4,2.60132047]
[1625469850447,3.4774,2264.2,2262.8,1.0]
[1625469850546,3.4774,2264.2,2262.7,14.6875]
[1625469850997,40.5989,2263.8,2263.7,2.20527]
[1625469851300,40.5989,2263.8,2263.7,2.16387]
[1625469851398,40.5989,2263.8,2262.7,14.6875]
[1625469852802,2.20527,2263.9,2262.7,14.6875]
[1625469853003,2.20527,2263.2,2263.1,2.20527]
[1625469855059,4.41054,2263.2,2263.1,2.20527]
[1625469857117,2.20527,2263.2,2263.1,2.20527]
[1625469857617,2.20527,2263.2,2263.1,18.335221]
[1625469857917,49.9231,2264.3,2263.1,21.881321]
[1625469858017,48.9231,2264.3,2263.1,21.881321]
[1625469858216,1.0,2265.1,2263.1,21.881321]
[1625469858318,1.0,2265.1,2263.1,22.881321]
[1625469859068,2.20527,2264.4,2264.3,2.20527]
[1625469859170,2.20527,2264.4,2264.3,4.81917]
[1625469861224,2.20527,2264.7,2264.3,4.81917]
[1625469861325,14.2133,2266.3,2264.3,4.81917]
[1625469861425,15.2133,2266.3,2264.3,5.81917]
[1625469861726,14.2133,2266.3,2264.3,4.81917]
[1625469861929,14.2133,2266.3,2264.4,16.158788]
[1625469862778,19.2133,2266.3,2264.4,16.158788]
[1625469862979,19.2133,2266.3,2264.3,2.20527]
[1625469863079,2.20527,2265.3,2265.2,2.20527]
[1625469863180,2.20527,2265.3,2264.9,2.20527]
[1625469863299,50.0137,2265.0,2264.9,2.20527]
[1625469865084,52.21897,2265.0,2264.9,2.20527]
[1625469865634,2.20527,2265.0,2264.9,2.20527]
[1625469870855,2.20527,2265.0,2263.8,1.0]
[1625469870956,2.20527,2265.0,2261.3,1.1]
[1625469871056,2.20527,2265.0,2262.7,15.6875]
[1625469871157,2.20527,2264.3,2264.2,2.20527]
[1625469872367,56.65757,2264.3,2264.2,2.20527]
[1625469872564,56.65757,2264.3,2262.7,15.6875]
[1625469872665,56.65757,2264.3,2262.7,14.6875]
[1625469873167,2.20527,2263.4,2263.3,2.20527]
[1625469873767,2.20527,2263.4,2262.7,14.6875]
[1625469873768,2.20527,2263.4,2262.7,1.0]
[1625469874171,47.4273,2263.3,2262.7,1.0]
[1625469874979,2.20527,2263.4,2262.7,1.0]
[1625469875172,4.41054,2262.8,2262.7,1.0]
[1625469875273,7.05414,2262.8,2262.7,1.0]
[1625469880330,4.41054,2262.8,2262.7,4.0458]
[1625469880680,4.41054,2262.8,2262.7,75.542258]
[1625469881183,4.41054,2262.8,2262.7,77.747528]
[1625469881284,1.0,2264.0,2262.7,77.747528]
[1625469881383,14.0618,2265.0,2262.7,77.747528]
[1625469881484,15.0618,2265.0,2262.7,78.747528]
[1625469883197,2.20527,2264.1,2264.0,2.20527]
[1625469885251,4.41054,2264.1,2264.0,2.20527]
[1625469886656,4.41054,2264.1,2262.7,2.0]
[1625469886759,4.41054,2264.1,2262.7,1.0]
[1625469887263,7.20004,2262.8,2262.7,1.0]
[1625469888212,2.7895,2262.8,2262.7,1.0]
[1625469888312,3.4621,2263.5,2262.7,1.0]
[1625469889015,4.3849,2264.3,2262.7,1.0]
[1625469889113,3.3849,2264.3,2262.7,1.0]
[1625469889213,2.20527,2263.3,2263.1,2.20527]
[1625469891069,2.20527,2263.3,2262.7,1.0]
[1625469891267,2.20527,2262.9,2262.7,1.0]
[1625469893223,2.20527,2262.8,2262.7,1.0]
[1625469900080,2.20527,2262.8,2261.6,1.0]
[1625469900181,2.20527,2262.8,2260.1,14.7752]
[1625469900281,6.0,2262.7,2260.1,14.7752]
[1625469900382,6.0,2262.7,2260.1,13.8899]
[1625469901034,6.0,2262.7,2260.2,16.125878]
[1625469901131,6.0,2262.7,2260.2,19.108978]
[1625469901290,2.20527,2260.9,2260.8,2.20527]
[1625469901482,1.0,2262.4,2260.8,2.20527]
[1625469901584,1.0,2262.4,2260.8,5.57347]
[1625469901683,1.0,2262.4,2260.9,15.952435]
[1625469901985,1.0,2262.4,2260.8,21.692781]
[1625469902089,1.0,2262.4,2260.8,5.57347]
[1625469902396,1.0,2262.4,2260.9,51.177]
[1625469902647,1.0,2262.4,2260.9,67.176646]
[1625469902746,1.0,2262.4,2260.9,15.999646]
[1625469903303,2.20527,2261.2,2261.1,2.20527]
[1625469903606,2.20527,2261.2,2261.1,18.218902]
[1625469905319,4.41054,2261.2,2261.1,18.218902]
[1625469906972,2.20527,2261.2,2261.1,18.218902]
[1625469907724,2.20527,2261.2,2261.1,2.20527]
[1625469908076,2.20527,2261.2,2261.1,18.2419]
[1625469908374,2.20527,2261.2,2261.1,2.20527]
[1625469908573,1.0,2262.6,2261.1,2.20527]
[1625469908675,1.0,2262.6,2261.1,5.58497]
[1625469908874,1.0,2262.6,2261.1,21.521704]
[1625469909228,1.0,2262.6,2262.0,56.921]
[1625469909425,4.41054,2262.1,2262.0,56.921]
[1625469909725,4.41054,2262.1,2262.0,3.2016]
[1625469909980,4.41054,2262.1,2262.0,19.37831]
[1625469910276,4.41054,2262.1,2262.0,3.2016]
[1625469910377,4.41054,2262.1,2261.9,2.20527]
[1625469910778,5.41054,2262.1,2261.9,2.20527]
[1625469911077,4.41054,2262.1,2261.9,2.20527]
[1625469911527,1.0,2262.0,2261.7,2.20527]
[1625469911929,4.41054,2262.1,2261.7,2.20527]
[1625469912431,1.0,2262.0,2261.7,2.20527]
[1625469912531,4.4552,2262.0,2261.7,2.20527]
[1625469913386,2.20527,2261.8,2261.7,2.20527]
[1625469913685,3.20527,2261.8,2261.7,2.20527]
[1625469913885,2.20527,2261.8,2261.7,2.20527]
[1625469915842,3.20527,2261.8,2261.7,2.20527]
[1625469917908,3.20527,2261.8,2261.2,2.20527]
[1625469919159,3.20527,2261.8,2260.0,0.05]
[1625469919363,5.41867,2261.8,2260.0,0.05]
[1625469919465,2.20527,2261.0,2260.9,2.20527]
[1625469920366,2.20527,2261.0,2260.9,18.248224]
[1625469921518,3.20527,2261.0,2260.9,18.248224]
[1625469921618,6.75367,2261.0,2260.9,2.20527]
[1625469922118,5.75367,2261.0,2260.9,2.20527]
[1625469924225,5.75367,2261.0,2260.9,18.388884]
[1625469924625,2.20527,2261.0,2260.9,18.388884]
[1625469926435,1.0,2262.1,2260.9,18.388884]
[1625469926536,1.0,2262.1,2260.9,20.590684]
[1625469927536,3.20527,2262.1,2262.0,2.20527]
[1625469929545,5.41054,2262.1,2262.0,2.20527]
[1625469931256,5.41054,2262.1,2261.7,2.20527]
[1625469931357,8.34244,2262.1,2261.7,2.20527]
[1625469931558,2.20527,2261.8,2261.7,2.20527]
[1625469933877,2.20527,2261.8,2261.7,18.288575]
[1625469939238,2.20527,2261.8,2261.7,21.494375]
[1625469941205,2.20527,2262.1,2261.7,21.494375]
[1625469941295,1.0,2262.8,2261.7,21.494375]
[1625469941597,1.0,2262.8,2262.7,7.46754]
[1625469942495,2.20527,2263.0,2262.7,7.46754]
[1625469942794,1.0,2262.9,2262.7,7.46754]
[1625469942894,2.20527,2263.0,2262.7,7.46754]
[1625469943695,3.20527,2263.0,2262.7,7.46754]
[1625469944197,2.20527,2263.0,2262.7,7.46754]
[1625469947362,1.0,2262.9,2262.7,7.46754]
[1625469947564,2.20527,2263.0,2262.7,7.46754]
[1625469948515,2.20527,2263.0,2262.7,7.44754]
[1625469950169,2.20527,2263.2,2262.7,7.44754]
[1625469951219,2.20527,2263.2,2262.8,16.063418]
[1625469951623,2.20527,2263.2,2263.1,2.20527]
[1625469954187,3.20527,2263.2,2263.1,2.20527]
[1625469957891,3.20527,2263.2,2262.4,3.2846]
[1625469957991,5.84687,2263.2,2262.4,3.2846]
[1625469958091,5.84687,2263.2,2261.0,5.0]
[1625469958692,5.84687,2263.2,2261.5,16.020905]
[1625469958842,5.84687,2263.2,2261.5,19.467705]
[1625469959647,2.20527,2262.6,2262.5,2.20527]
[1625469959846,3.20527,2262.6,2262.5,2.20527]
[1625469960799,3.20527,2262.6,2260.9,9.759]
[1625469961197,3.20527,2262.6,2261.4,14.9187]
[1625469961599,3.20527,2262.6,2261.5,16.051417]
[1625469961698,3.20527,2262.6,2262.1,2.20527]
[1625469963666,5.41054,2262.6,2262.5,2.20527]
[1625469963769,4.41054,2262.6,2262.5,2.20527]
[1625469963969,5.41054,2262.6,2262.5,2.20527]
[1625469964329,4.41054,2262.6,2262.5,2.20527]
[1625469964427,4.41054,2262.6,2262.1,2.20527]
[1625469964525,7.11104,2262.6,2262.1,2.20527]
[1625469964626,7.11104,2262.6,2260.7,3.38199173]
[1625469964825,7.11104,2262.6,2260.6,14.5246]
[1625469964927,1.0,2262.5,2260.6,14.5246]
[1625469965328,1.0,2262.5,2260.7,16.140225]
[1625469965727,2.20527,2261.8,2261.6,2.20527]
[1625469965831,1.0,2261.7,2261.6,2.20527]
[1625469966681,4.131,2261.7,2261.6,2.20527]
[1625469967685,6.33627,2261.7,2261.6,2.20527]
[1625469969586,6.33627,2261.7,2260.2,14.4514]
[1625469969685,2.20527,2261.0,2260.8,2.20527]
[1625469969790,1.0,2260.9,2260.8,2.20527]
[1625469969987,2.20527,2261.0,2260.8,2.20527]
[1625469970386,3.20527,2261.0,2260.8,2.20527]
[1625469971393,2.20527,2261.0,2260.8,2.20527]
[1625469971693,2.20527,2260.9,2260.8,2.20527]
[1625469971792,3.20527,2260.9,2260.8,2.20527]
[1625469972844,6.32827,2260.9,2260.8,2.20527]
[1625469975452,6.32827,2260.9,2260.0,0.05]
[1625469975564,11.32827,2260.9,2260.0,0.05]
[1625469975753,4.41054,2260.1,2260.0,0.05]
[1625469975852,7.67784,2260.1,2260.0,0.05]
[1625469980225,7.67784,2260.1,2259.5,2.20527]
[1625469980323,7.67784,2260.1,2259.3,2.0]
[1625469981725,4.41054,2259.4,2259.3,2.0]
[1625469981824,8.32714,2259.4,2259.3,2.0]
[1625469984782,9.19974,2259.4,2259.3,2.0]
[1625469985484,8.32714,2259.4,2259.3,2.0]
[1625469995463,8.32714,2259.4,2259.3,0.6287]
[1625469996479,47.54984,2259.4,2259.3,0.6287]
[1625469997177,47.54984,2259.4,2257.1,15.0277]
[1625469997278,47.54984,2259.4,2257.1,14.1376]
[1625469997479,5.0,2259.3,2257.1,14.1376]
[1625469997578,1.0,2259.2,2257.1,14.1376]
[1625469997678,1.0,2259.2,2256.7,14.4175]
[1625469997882,7.56434,2256.8,2256.7,14.4175]
[1625469997982,3.1538,2256.8,2256.5,2.20527]
[1625469998077,2.222,2258.2,2256.5,2.20527]
[1625469998179,1.0,2258.1,2256.5,2.20527]
[1625469998780,1.0,2258.1,2256.6,16.151314]
[1625469999685,1.0,2258.2,2256.6,19.083414]
[1625469999790,1.0,2258.1,2256.6,19.083414]
[1625469999936,2.20527,2257.4,2257.3,2.20527]
[1625470000185,7e-05,2257.4,2257.3,2.20527]
[1625470000284,3.17023388,2260.6,2257.3,2.20527]
[1625470000484,5.0,2259.9,2257.3,2.20527]
[1625470000754,1.0,2259.6,2257.3,2.20527]
[1625470000835,1.0,2259.6,2257.4,16.040727]
[1625470001392,1.0,2259.6,2252.4,19.34391176]
[1625470001493,4.2182,2259.6,2256.2,13.7533]
[1625470001593,9.2182,2259.6,2256.2,13.7533]
[1625470001894,2.20527,2257.1,2257.0,2.20527]
[1625470003649,2.20527,2257.1,2256.8,2.20527]
[1625470003751,3.20527,2257.1,2256.8,2.20527]
[1625470003849,2.20527,2256.9,2256.8,2.20527]
[1625470005158,13.6943,2258.2,2256.8,2.20527]
[1625470005159,1.0,2258.1,2256.8,2.20527]
[1625470005264,1.0,2258.1,2256.8,4.87307]
[1625470005850,13.6943,2258.2,2256.8,4.87307]
[1625470005851,0.8813,2260.9,2256.8,4.87307]
[1625470005951,2.20527,2258.4,2256.8,2.6678]
[1625470006150,2.20527,2258.4,2256.8,48.901]
[1625470006349,2.20527,2258.4,2256.9,15.970426]
[1625470006502,2.20527,2258.4,2257.3,1.15]
[1625470006599,2.20527,2258.4,2257.3,4.167]
[1625470006905,2.20527,2258.4,2257.4,15.962552]
[1625470007565,2.20527,2258.7,2257.4,15.962552]
[1625470007914,2.20527,2258.7,2258.5,2.20527]
[1625470008021,2.20527,2258.8,2258.5,5.22727]
[1625470009076,2.20527,2258.8,2258.6,15.952325]
[1625470009328,1.0,2259.2,2258.6,15.952325]